[Event "Late-Titled-Tuesday-Blitz-October-17-2023"]
[Site "Chess.com"]
[Date "2023.10.17"]
[Round "1"]
[White "HanSchut"]
[Black "ellatambien"]
[Result "0-1"]
[WhiteElo "2319"]
[BlackElo "2622"]
[TimeControl "180+1"]
[EndTime "14:06:35 PDT"]
[Termination "ellatambien won on time"]

1. e4 {[%clk 0:02:59.6]} 1... e5 {[%clk 0:02:59.8]} 2. Nf3 {[%clk 0:02:59.6]}
2... Nc6 {[%clk 0:03:00.1]} 3. Bc4 {[%clk 0:03:00.1]} 3... Nf6 {[%clk
0:02:59.8]} 4. d4 {[%clk 0:03:00.6]} 4... exd4 {[%clk 0:02:59.6]} 5. e5 {[%clk
0:03:01.5]} 5... d5 {[%clk 0:02:59.4]} 6. Bb5 {[%clk 0:03:02.2]} 6... Ne4 {[%clk
0:02:59.9]} 7. Nxd4 {[%clk 0:03:02.6]} 7... Bc5 {[%clk 0:03:00.4]} 8. Be3 {[%clk
0:03:02.8]} 8... O-O {[%clk 0:03:00.1]} 9. Nxc6 {[%clk 0:03:02]} 9... bxc6
{[%clk 0:02:59.1]} 10. Bxc5 {[%clk 0:03:02.9]} 10... Nxc5 {[%clk 0:02:59.5]} 11.
Bxc6 {[%clk 0:03:03.6]} 11... Rb8 {[%clk 0:02:59.6]} 12. Qxd5 {[%clk 0:03:02.2]}
12... Qe7 {[%clk 0:03:00.5]} 13. O-O {[%clk 0:03:01]} 13... Rxb2 {[%clk
0:02:58.6]} 14. Nc3 {[%clk 0:03:00.7]} 14... Rd8 {[%clk 0:02:55]} 15. Qf3 {[%clk
0:03:00]} 15... Ne6 {[%clk 0:02:55.4]} 16. Nd5 {[%clk 0:02:51.1]} 16... Qc5
{[%clk 0:02:17.7]} 17. Rad1 {[%clk 0:02:50.6]} 17... Ba6 {[%clk 0:02:09.9]} 18.
Rfe1 {[%clk 0:02:44.2]} 18... Rxc2 {[%clk 0:01:25.4]} 19. Ba4 {[%clk 0:02:43.2]}
19... Re2 {[%clk 0:01:18.6]} 20. Rxe2 {[%clk 0:01:42.1]} 20... Bxe2 {[%clk
0:01:19.5]} 21. Qxe2 {[%clk 0:00:56.7]} 21... Rxd5 {[%clk 0:01:19.4]} 22. Rxd5
{[%clk 0:00:32.2]} 22... Qxd5 {[%clk 0:01:20.3]} 23. Bb3 {[%clk 0:00:32.7]}
23... Qd4 {[%clk 0:01:20.6]} 24. Bxe6 {[%clk 0:00:23.2]} 24... fxe6 {[%clk
0:01:00]} 25. g3 {[%clk 0:00:23]} 25... c5 {[%clk 0:00:55.4]} 26. Qa6 {[%clk
0:00:18]} 26... Qd1+ {[%clk 0:00:51.6]} 27. Kg2 {[%clk 0:00:17.4]} 27... Qd5+
{[%clk 0:00:51.4]} 28. Kf1 {[%clk 0:00:07.7]} 28... c4 {[%clk 0:00:49.8]} 29.
Qxa7 {[%clk 0:00:04]} 29... h6 {[%clk 0:00:38.6]} 0-1

[Event "Late-Titled-Tuesday-Blitz-October-17-2023"]
[Site "Chess.com"]
[Date "2023.10.17"]
[Round "1"]
[White "biostatistician"]
[Black "RamyresCoelho"]
[Result "1-0"]
[WhiteElo "2588"]
[BlackElo "2283"]
[TimeControl "180+1"]
[EndTime "14:06:35 PDT"]
[Termination "biostatistician won by checkmate"]

1. d4 {[%clk 0:02:59.6]} 1... Nf6 {[%clk 0:02:57.8]} 2. Nf3 {[%clk 0:02:50.8]}
2... g6 {[%clk 0:02:57.8]} 3. c4 {[%clk 0:02:51]} 3... Bg7 {[%clk 0:02:58.1]} 4.
Nc3 {[%clk 0:02:51.9]} 4... d5 {[%clk 0:02:58.3]} 5. cxd5 {[%clk 0:02:52.8]}
5... Nxd5 {[%clk 0:02:59.2]} 6. e4 {[%clk 0:02:53.6]} 6... Nxc3 {[%clk
0:02:59.7]} 7. bxc3 {[%clk 0:02:54.5]} 7... O-O {[%clk 0:03:00.6]} 8. Be2 {[%clk
0:02:54.5]} 8... c5 {[%clk 0:03:01.5]} 9. O-O {[%clk 0:02:55.2]} 9... cxd4
{[%clk 0:03:02.4]} 10. cxd4 {[%clk 0:02:55.8]} 10... Nc6 {[%clk 0:03:02.7]} 11.
Be3 {[%clk 0:02:56.3]} 11... Bg4 {[%clk 0:03:02.3]} 12. d5 {[%clk 0:02:56.7]}
12... Bxa1 {[%clk 0:03:01.9]} 13. Qxa1 {[%clk 0:02:57.6]} 13... Bxf3 {[%clk
0:02:55.6]} 14. Bxf3 {[%clk 0:02:57.8]} 14... Na5 {[%clk 0:02:53.8]} 15. Bh6
{[%clk 0:02:57.1]} 15... f6 {[%clk 0:02:53.8]} 16. Bxf8 {[%clk 0:02:57.5]} 16...
Kxf8 {[%clk 0:02:53.9]} 17. e5 {[%clk 0:02:57.5]} 17... Rc8 {[%clk 0:02:44.7]}
18. Rd1 {[%clk 0:02:50.5]} 18... Nc4 {[%clk 0:02:38.7]} 19. exf6 {[%clk
0:02:46]} 19... exf6 {[%clk 0:02:38.6]} 20. d6 {[%clk 0:02:44.7]} 20... b6
{[%clk 0:01:49]} 21. Qd4 {[%clk 0:02:15.8]} 21... Rc5 {[%clk 0:01:33.5]} 22. h4
{[%clk 0:02:14.6]} 22... Ne5 {[%clk 0:01:30.2]} 23. Be2 {[%clk 0:01:59]} 23...
Kg7 {[%clk 0:01:27.1]} 24. h5 {[%clk 0:01:56.6]} 24... Qd7 {[%clk 0:01:18.3]}
25. a4 {[%clk 0:01:49.7]} 25... gxh5 {[%clk 0:00:49.9]} 26. Bb5 {[%clk
0:01:30.8]} 26... Qg4 {[%clk 0:00:35.1]} 27. Qxg4+ {[%clk 0:01:18.6]} 27... hxg4
{[%clk 0:00:36]} 28. d7 {[%clk 0:01:18.3]} 28... Nxd7 {[%clk 0:00:36.3]} 29.
Rxd7+ {[%clk 0:01:19.2]} 29... Kg6 {[%clk 0:00:36.3]} 30. Rxa7 {[%clk
0:01:19.4]} 30... h5 {[%clk 0:00:35.6]} 31. Rb7 {[%clk 0:01:16.1]} 31... h4
{[%clk 0:00:35.2]} 32. Rxb6 {[%clk 0:01:15.6]} 32... g3 {[%clk 0:00:35.4]} 33.
fxg3 {[%clk 0:01:15]} 33... hxg3 {[%clk 0:00:36.3]} 34. Bd3+ {[%clk 0:01:12.3]}
34... Kg5 {[%clk 0:00:35.1]} 35. Rb5 {[%clk 0:01:12.3]} 35... Rxb5 {[%clk
0:00:33.7]} 36. axb5 {[%clk 0:01:08.8]} 36... f5 {[%clk 0:00:34.6]} 37. b6
{[%clk 0:01:08.5]} 37... f4 {[%clk 0:00:35.5]} 38. b7 {[%clk 0:01:08.5]} 38...
f3 {[%clk 0:00:36.4]} 39. gxf3 {[%clk 0:01:08.4]} 39... Kf4 {[%clk 0:00:36.5]}
40. b8=Q+ {[%clk 0:01:08.1]} 40... Kxf3 {[%clk 0:00:37.4]} 41. Qf8+ {[%clk
0:01:07.7]} 41... Ke3 {[%clk 0:00:37.1]} 42. Qf5 {[%clk 0:01:07.6]} 42... g2
{[%clk 0:00:36.6]} 43. Bb5 {[%clk 0:01:05]} 43... Kd2 {[%clk 0:00:34.2]} 44.
Qd3+ {[%clk 0:01:04.9]} 44... Kc1 {[%clk 0:00:34.4]} 45. Qe2 {[%clk 0:01:03.8]}
45... Kb1 {[%clk 0:00:34.3]} 46. Ba4 {[%clk 0:00:58]} 46... Ka1 {[%clk
0:00:35.2]} 47. Bb3 {[%clk 0:00:57.7]} 47... Kb1 {[%clk 0:00:34.8]} 48. Qc2+
{[%clk 0:00:57.9]} 48... Ka1 {[%clk 0:00:33.5]} 49. Qa2# {[%clk 0:00:58.8]} 1-0

[Event "Late-Titled-Tuesday-Blitz-October-17-2023"]
[Site "Chess.com"]
[Date "2023.10.17"]
[Round "1"]
[White "AleksanderHnydiuk"]
[Black "C_K_G"]
[Result "1-0"]
[WhiteElo "2514"]
[BlackElo "1895"]
[TimeControl "180+1"]
[EndTime "14:06:37 PDT"]
[Termination "AleksanderHnydiuk won on time"]

1. d4 {[%clk 0:02:53.9]} 1... d5 {[%clk 0:02:58.9]} 2. c4 {[%clk 0:02:52.7]}
2... e6 {[%clk 0:02:58.5]} 3. Nf3 {[%clk 0:02:51.3]} 3... Nf6 {[%clk 0:02:57.6]}
4. g3 {[%clk 0:02:50.5]} 4... b6 {[%clk 0:02:56.2]} 5. cxd5 {[%clk 0:02:49.5]}
5... exd5 {[%clk 0:02:55.7]} 6. Bg2 {[%clk 0:02:49.7]} 6... Bb7 {[%clk 0:02:46]}
7. O-O {[%clk 0:02:50]} 7... Bd6 {[%clk 0:02:44.7]} 8. Nc3 {[%clk 0:02:49.4]}
8... h6 {[%clk 0:02:42.1]} 9. Nb5 {[%clk 0:02:47.7]} 9... O-O {[%clk 0:02:39.7]}
10. Nxd6 {[%clk 0:02:47.6]} 10... Qxd6 {[%clk 0:02:39.7]} 11. Bf4 {[%clk
0:02:47.5]} 11... Qd8 {[%clk 0:02:36.7]} 12. Rc1 {[%clk 0:02:46.6]} 12... c6
{[%clk 0:02:33.7]} 13. Ne5 {[%clk 0:02:46.5]} 13... Nbd7 {[%clk 0:02:33.2]} 14.
Nxc6 {[%clk 0:02:45.9]} 14... Bxc6 {[%clk 0:02:27.4]} 15. Rxc6 {[%clk
0:02:46.8]} 15... Re8 {[%clk 0:02:16.3]} 16. Qd3 {[%clk 0:02:32.9]} 16... Ne4
{[%clk 0:01:57.1]} 17. Rfc1 {[%clk 0:02:12.8]} 17... Qe7 {[%clk 0:01:39.3]} 18.
Rc7 {[%clk 0:02:06.4]} 18... Qe6 {[%clk 0:01:28.1]} 19. R1c6 {[%clk 0:01:52.6]}
19... Qf5 {[%clk 0:01:21.1]} 20. f3 {[%clk 0:01:46.2]} 20... g5 {[%clk
0:00:40.8]} 21. Bc1 {[%clk 0:01:45.4]} 21... Ndf6 {[%clk 0:00:24.5]} 22. fxe4
{[%clk 0:01:37.8]} 22... dxe4 {[%clk 0:00:24.4]} 23. Qc4 {[%clk 0:01:00.6]}
23... Ng4 {[%clk 0:00:22.1]} 24. e3 {[%clk 0:00:33.7]} 24... Qf2+ {[%clk
0:00:17.9]} 25. Kh1 {[%clk 0:00:33.9]} 25... Rf8 {[%clk 0:00:02.6]} 26. Qf1
{[%clk 0:00:30.5]} 1-0

[Event "Late-Titled-Tuesday-Blitz-October-17-2023"]
[Site "Chess.com"]
[Date "2023.10.17"]
[Round "1"]
[White "Kale36"]
[Black "Mikhail_Golubev"]
[Result "1-0"]
[WhiteElo "2300"]
[BlackElo "2572"]
[TimeControl "180+1"]
[EndTime "14:06:39 PDT"]
[Termination "Kale36 won on time"]

1. d4 {[%clk 0:02:56.9]} 1... Nf6 {[%clk 0:02:59.5]} 2. Nc3 {[%clk 0:02:56.9]}
2... d5 {[%clk 0:02:57.6]} 3. Bg5 {[%clk 0:02:56.8]} 3... Nbd7 {[%clk
0:02:53.6]} 4. e3 {[%clk 0:02:56.4]} 4... h6 {[%clk 0:02:43.1]} 5. Bh4 {[%clk
0:02:55.3]} 5... g6 {[%clk 0:02:24.6]} 6. f4 {[%clk 0:02:53.4]} 6... Bg7 {[%clk
0:02:20.8]} 7. Nf3 {[%clk 0:02:53.5]} 7... c5 {[%clk 0:02:12.5]} 8. Bb5 {[%clk
0:02:46.6]} 8... O-O {[%clk 0:02:01.5]} 9. O-O {[%clk 0:02:40.7]} 9... cxd4
{[%clk 0:01:31]} 10. exd4 {[%clk 0:02:37.1]} 10... Nb6 {[%clk 0:01:24.4]} 11.
Ne5 {[%clk 0:02:25.6]} 11... Ne4 {[%clk 0:01:07.7]} 12. Nxe4 {[%clk 0:02:21.8]}
12... dxe4 {[%clk 0:01:08.6]} 13. c3 {[%clk 0:02:22.3]} 13... Nd5 {[%clk
0:00:55.9]} 14. Qe2 {[%clk 0:01:53.1]} 14... f6 {[%clk 0:00:52.1]} 15. Ng4
{[%clk 0:01:43.7]} 15... f5 {[%clk 0:00:18.1]} 16. Ne5 {[%clk 0:01:40.3]} 16...
Kh7 {[%clk 0:00:14.6]} 17. Bc4 {[%clk 0:01:31.1]} 17... Be6 {[%clk 0:00:13.5]}
18. Bxd5 {[%clk 0:01:26.4]} 18... Bxd5 {[%clk 0:00:12.4]} 19. c4 {[%clk
0:01:26.6]} 19... Bg8 {[%clk 0:00:12]} 20. Rfd1 {[%clk 0:01:23.4]} 20... Rc8
{[%clk 0:00:10.8]} 21. d5 {[%clk 0:01:13.3]} 21... Qd6 {[%clk 0:00:10.1]} 22.
Qe3 {[%clk 0:01:05.8]} 22... Bxe5 {[%clk 0:00:09.3]} 23. fxe5 {[%clk 0:01:06.1]}
23... Qxe5 {[%clk 0:00:10]} 24. Qxa7 {[%clk 0:01:05.2]} 24... g5 {[%clk
0:00:08.6]} 25. Bf2 {[%clk 0:01:03]} 25... f4 {[%clk 0:00:08.2]} 26. Bd4 {[%clk
0:01:02.2]} 26... Qc7 {[%clk 0:00:07.6]} 27. c5 {[%clk 0:00:57.8]} 27... Bxd5
{[%clk 0:00:06.5]} 28. Qa3 {[%clk 0:00:49]} 28... Qc6 {[%clk 0:00:02.6]} 29. Qc3
{[%clk 0:00:49]} 29... e3 {[%clk 0:00:01.9]} 30. Bg7 {[%clk 0:00:47.3]} 30...
Rf7 {[%clk 0:00:01.6]} 31. Qe5 {[%clk 0:00:43.8]} 1-0

[Event "Late-Titled-Tuesday-Blitz-October-17-2023"]
[Site "Chess.com"]
[Date "2023.10.17"]
[Round "1"]
[White "Mykola-Bortnyk"]
[Black "Truequitos"]
[Result "1-0"]
[WhiteElo "2992"]
[BlackElo "2500"]
[TimeControl "180+1"]
[EndTime "14:06:42 PDT"]
[Termination "Mykola-Bortnyk won by resignation"]

1. e4 {[%clk 0:03:00.9]} 1... e6 {[%clk 0:02:59.8]} 2. d4 {[%clk 0:03:01.1]}
2... d5 {[%clk 0:02:59.9]} 3. exd5 {[%clk 0:03:01.4]} 3... exd5 {[%clk
0:02:59.9]} 4. c4 {[%clk 0:03:02]} 4... Nc6 {[%clk 0:02:59.6]} 5. Nc3 {[%clk
0:02:57.7]} 5... Nf6 {[%clk 0:02:58.7]} 6. Nf3 {[%clk 0:02:56.7]} 6... Bg4
{[%clk 0:02:58.9]} 7. Be3 {[%clk 0:02:53.6]} 7... Bb4 {[%clk 0:02:58]} 8. Rc1
{[%clk 0:02:44.5]} 8... O-O {[%clk 0:02:56.9]} 9. Be2 {[%clk 0:02:16.7]} 9...
dxc4 {[%clk 0:02:56.1]} 10. O-O {[%clk 0:02:15.2]} 10... Nd5 {[%clk 0:02:50.7]}
11. Bxc4 {[%clk 0:02:11.5]} 11... Nxe3 {[%clk 0:02:49.9]} 12. fxe3 {[%clk
0:02:12.4]} 12... a6 {[%clk 0:02:42.6]} 13. Qb3 {[%clk 0:02:07.5]} 13... Bh5
{[%clk 0:02:24]} 14. d5 {[%clk 0:01:58.7]} 14... Bxc3 {[%clk 0:02:20]} 15. dxc6
{[%clk 0:01:58.9]} 15... b5 {[%clk 0:02:06.8]} 16. Rxc3 {[%clk 0:01:26.1]} 16...
bxc4 {[%clk 0:02:06.4]} 17. Qxc4 {[%clk 0:01:27]} 17... Qd6 {[%clk 0:02:00.7]}
18. Nd4 {[%clk 0:01:20.1]} 18... Rfe8 {[%clk 0:01:56.6]} 19. Qc5 {[%clk
0:01:15.1]} 19... Qh6 {[%clk 0:01:48.2]} 20. Nf5 {[%clk 0:01:13.5]} 20... Qe6
{[%clk 0:01:48.6]} 21. Nxg7 {[%clk 0:01:09.3]} 21... Kxg7 {[%clk 0:01:41.4]} 22.
Qxh5 {[%clk 0:01:09.4]} 22... Qg6 {[%clk 0:01:41.6]} 23. Qf3 {[%clk 0:00:57.9]}
23... Re6 {[%clk 0:01:40.2]} 24. Rc4 {[%clk 0:00:57.5]} 24... Rf6 {[%clk
0:01:29.9]} 25. Rf4 {[%clk 0:00:49.5]} 25... Rxf4 {[%clk 0:01:27.1]} 26. Qxf4
{[%clk 0:00:50.4]} 26... Re8 {[%clk 0:01:21.2]} 27. Qxc7 {[%clk 0:00:44.1]}
27... Re6 {[%clk 0:01:14.7]} 28. h3 {[%clk 0:00:38.8]} 28... Rxc6 {[%clk
0:01:14.4]} 29. Rxf7+ {[%clk 0:00:38.2]} 29... Qxf7 {[%clk 0:01:15.3]} 30. Qxc6
{[%clk 0:00:38.2]} 30... Qxa2 {[%clk 0:01:16]} 31. Qc3+ {[%clk 0:00:34.4]} 31...
Kg8 {[%clk 0:01:15.6]} 32. Kh2 {[%clk 0:00:29.4]} 32... Qe6 {[%clk 0:01:14.2]}
33. Qd4 {[%clk 0:00:27.9]} 33... Qb3 {[%clk 0:01:09.6]} 34. e4 {[%clk
0:00:26.8]} 34... Qb8+ {[%clk 0:00:59.5]} 35. e5 {[%clk 0:00:27.3]} 35... Kf7
{[%clk 0:00:58.4]} 36. Qd5+ {[%clk 0:00:22.8]} 36... Kg7 {[%clk 0:00:54.3]} 37.
b3 {[%clk 0:00:21.4]} 37... Qb4 {[%clk 0:00:50.2]} 38. e6 {[%clk 0:00:19.4]}
38... Qf4+ {[%clk 0:00:50]} 39. Kg1 {[%clk 0:00:18.9]} 39... Qe3+ {[%clk
0:00:49.7]} 40. Kf1 {[%clk 0:00:19.6]} 40... Qc1+ {[%clk 0:00:49.2]} 41. Kf2
{[%clk 0:00:19.7]} 41... Qf4+ {[%clk 0:00:49.2]} 42. Ke2 {[%clk 0:00:19.4]}
42... Kf6 {[%clk 0:00:46.1]} 43. Qf3 {[%clk 0:00:19.6]} 1-0

[Event "Late-Titled-Tuesday-Blitz-October-17-2023"]
[Site "Chess.com"]
[Date "2023.10.17"]
[Round "1"]
[White "Casablanca"]
[Black "VdovinDmitry"]
[Result "1-0"]
[WhiteElo "2763"]
[BlackElo "2388"]
[TimeControl "180+1"]
[EndTime "14:06:42 PDT"]
[Termination "Casablanca won by resignation"]

1. d4 {[%clk 0:03:00.9]} 1... d5 {[%clk 0:02:58.2]} 2. c4 {[%clk 0:03:00.6]}
2... c6 {[%clk 0:02:58.1]} 3. Nf3 {[%clk 0:02:59.8]} 3... Nf6 {[%clk 0:02:57.8]}
4. Qb3 {[%clk 0:02:59.2]} 4... Qb6 {[%clk 0:02:56.2]} 5. c5 {[%clk 0:02:53.3]}
5... Qc7 {[%clk 0:02:53.5]} 6. g3 {[%clk 0:02:53.2]} 6... Bg4 {[%clk 0:02:51]}
7. Bf4 {[%clk 0:02:48.5]} 7... Qc8 {[%clk 0:02:45.8]} 8. Ne5 {[%clk 0:02:48.6]}
8... Bf5 {[%clk 0:02:43.8]} 9. Nc3 {[%clk 0:02:44.2]} 9... Nfd7 {[%clk
0:02:43.7]} 10. g4 {[%clk 0:02:34.5]} 10... Be6 {[%clk 0:02:36.7]} 11. h3 {[%clk
0:02:09.8]} 11... Nxe5 {[%clk 0:02:34]} 12. Bxe5 {[%clk 0:02:10.7]} 12... f6
{[%clk 0:02:33.6]} 13. Bg3 {[%clk 0:02:10.5]} 13... Bf7 {[%clk 0:02:29.5]} 14.
e4 {[%clk 0:02:07.8]} 14... e6 {[%clk 0:02:29]} 15. e5 {[%clk 0:01:42.5]} 15...
Nd7 {[%clk 0:02:26.8]} 16. exf6 {[%clk 0:01:41.6]} 16... Nxf6 {[%clk 0:02:24.7]}
17. Bd3 {[%clk 0:01:39.6]} 17... Be7 {[%clk 0:02:20.5]} 18. O-O-O {[%clk
0:01:20.9]} 18... O-O {[%clk 0:02:19]} 19. Kb1 {[%clk 0:01:20.2]} 19... Nd7
{[%clk 0:02:11.4]} 20. Qc2 {[%clk 0:01:18.1]} 20... h6 {[%clk 0:02:07.4]} 21.
Bg6 {[%clk 0:01:11]} 21... Bxg6 {[%clk 0:02:01.8]} 22. Qxg6 {[%clk 0:01:11.9]}
22... Nf6 {[%clk 0:02:01.8]} 23. Rhe1 {[%clk 0:01:11.1]} 23... b5 {[%clk
0:01:53.9]} 24. h4 {[%clk 0:00:55]} 24... b4 {[%clk 0:01:50.6]} 25. g5 {[%clk
0:00:54.8]} 25... bxc3 {[%clk 0:01:47.3]} 26. gxf6 {[%clk 0:00:50]} 26... Bxf6
{[%clk 0:01:43.3]} 27. bxc3 {[%clk 0:00:47.7]} 27... Qa6 {[%clk 0:01:20.3]} 28.
Rxe6 {[%clk 0:00:46.8]} 28... Qa3 {[%clk 0:01:11.7]} 29. Qc2 {[%clk 0:00:44]}
29... a5 {[%clk 0:00:47.1]} 30. Qb3 {[%clk 0:00:41.2]} 30... Qxb3+ {[%clk
0:00:42.6]} 31. axb3 {[%clk 0:00:42.1]} 31... Ra6 {[%clk 0:00:42.9]} 32. Ka2
{[%clk 0:00:35.2]} 32... a4 {[%clk 0:00:36.1]} 33. b4 {[%clk 0:00:34.9]} 33...
g5 {[%clk 0:00:26.4]} 34. hxg5 {[%clk 0:00:32.6]} 34... Bxg5 {[%clk 0:00:26]}
35. b5 {[%clk 0:00:31.9]} 35... Raa8 {[%clk 0:00:21.5]} 36. Rxc6 {[%clk
0:00:29.9]} 1-0

[Event "Late-Titled-Tuesday-Blitz-October-17-2023"]
[Site "Chess.com"]
[Date "2023.10.17"]
[Round "1"]
[White "cthulhuuu"]
[Black "BardArtem"]
[Result "0-1"]
[WhiteElo "2413"]
[BlackElo "2748"]
[TimeControl "180+1"]
[EndTime "14:06:44 PDT"]
[Termination "BardArtem won by checkmate"]

1. e4 {[%clk 0:03:00]} 1... e5 {[%clk 0:02:57.6]} 2. Nf3 {[%clk 0:03:00]} 2...
Nc6 {[%clk 0:02:57]} 3. Bb5 {[%clk 0:03:00.6]} 3... Nge7 {[%clk 0:02:56.3]} 4.
O-O {[%clk 0:02:59.9]} 4... Ng6 {[%clk 0:02:56.1]} 5. c3 {[%clk 0:02:59.9]} 5...
d5 {[%clk 0:02:55.4]} 6. d4 {[%clk 0:02:33.3]} 6... dxe4 {[%clk 0:02:52.7]} 7.
Nxe5 {[%clk 0:02:32.6]} 7... Nxe5 {[%clk 0:02:53.6]} 8. dxe5 {[%clk 0:02:32.7]}
8... Qxd1 {[%clk 0:02:54.5]} 9. Rxd1 {[%clk 0:02:33.2]} 9... Bd7 {[%clk
0:02:55.4]} 10. Bf4 {[%clk 0:02:27.8]} 10... O-O-O {[%clk 0:02:50.4]} 11. Bc4
{[%clk 0:02:13.4]} 11... Be6 {[%clk 0:02:44.6]} 12. Bxe6+ {[%clk 0:02:06.8]}
12... fxe6 {[%clk 0:02:43.3]} 13. Rxd8+ {[%clk 0:02:06.5]} 13... Kxd8 {[%clk
0:02:25.2]} 14. Nd2 {[%clk 0:02:07.4]} 14... Be7 {[%clk 0:02:19.2]} 15. Nxe4
{[%clk 0:02:06]} 15... h6 {[%clk 0:02:19.2]} 16. b4 {[%clk 0:01:51.4]} 16... Rf8
{[%clk 0:02:18.1]} 17. Bg3 {[%clk 0:01:49.7]} 17... Rf5 {[%clk 0:02:15.8]} 18.
Rd1+ {[%clk 0:01:48.2]} 18... Ke8 {[%clk 0:02:11.1]} 19. f4 {[%clk 0:01:47.6]}
19... g5 {[%clk 0:02:11.1]} 20. fxg5 {[%clk 0:01:36.9]} 20... hxg5 {[%clk
0:02:12]} 21. Rf1 {[%clk 0:01:34.7]} 21... Kf7 {[%clk 0:01:50.7]} 22. Nf6 {[%clk
0:01:11]} 22... Nxe5 {[%clk 0:01:40.5]} 23. Bxe5 {[%clk 0:01:04.2]} 23... Bxf6
{[%clk 0:01:30]} 24. Bxf6 {[%clk 0:00:53.1]} 24... Kxf6 {[%clk 0:01:30.9]} 25.
h3 {[%clk 0:00:52.8]} 25... Ke5 {[%clk 0:01:28.5]} 26. g3 {[%clk 0:00:50.3]}
26... Ke4 {[%clk 0:01:21]} 27. Rxf5 {[%clk 0:00:49.3]} 27... exf5 {[%clk
0:01:20.6]} 28. Kf2 {[%clk 0:00:48.5]} 28... f4 {[%clk 0:01:16.5]} 29. g4 {[%clk
0:00:33.6]} 29... b5 {[%clk 0:01:07.4]} 30. Ke2 {[%clk 0:00:23.9]} 30... f3+
{[%clk 0:01:05.6]} 31. Ke1 {[%clk 0:00:12.1]} 31... Ke3 {[%clk 0:00:58.2]} 32.
Kf1 {[%clk 0:00:11.9]} 32... f2 {[%clk 0:00:52.6]} 33. h4 {[%clk 0:00:06.9]}
33... gxh4 {[%clk 0:00:52.3]} 34. g5 {[%clk 0:00:07.2]} 34... h3 {[%clk
0:00:52.9]} 35. g6 {[%clk 0:00:08]} 35... h2 {[%clk 0:00:53.5]} 36. Kg2 {[%clk
0:00:08.3]} 36... f1=Q+ {[%clk 0:00:51.2]} 37. Kxf1 {[%clk 0:00:08.9]} 37...
h1=Q# {[%clk 0:00:51.4]} 0-1

[Event "Late-Titled-Tuesday-Blitz-October-17-2023"]
[Site "Chess.com"]
[Date "2023.10.17"]
[Round "1"]
[White "KorolDimitriy75"]
[Black "AlexPapasimakopoulos"]
[Result "0-1"]
[WhiteElo "2371"]
[BlackElo "2679"]
[TimeControl "180+1"]
[EndTime "14:06:50 PDT"]
[Termination "AlexPapasimakopoulos won on time"]

1. d4 {[%clk 0:03:00.9]} 1... e6 {[%clk 0:02:38.7]} 2. c4 {[%clk 0:03:00.8]}
2... d5 {[%clk 0:02:38.7]} 3. Nc3 {[%clk 0:03:01]} 3... a6 {[%clk 0:02:36.7]} 4.
cxd5 {[%clk 0:03:00.1]} 4... exd5 {[%clk 0:02:37.6]} 5. Bf4 {[%clk 0:03:00.3]}
5... c6 {[%clk 0:02:37.8]} 6. e3 {[%clk 0:02:59.9]} 6... Bd6 {[%clk 0:02:37.6]}
7. Nge2 {[%clk 0:02:56.7]} 7... Bf5 {[%clk 0:02:36.7]} 8. Bxd6 {[%clk
0:02:52.1]} 8... Qxd6 {[%clk 0:02:31.2]} 9. Ng3 {[%clk 0:02:51.3]} 9... Bg6
{[%clk 0:02:31.2]} 10. Bd3 {[%clk 0:02:49.9]} 10... Nd7 {[%clk 0:02:31.2]} 11.
O-O {[%clk 0:02:48]} 11... Ngf6 {[%clk 0:02:29.9]} 12. f3 {[%clk 0:02:42.2]}
12... O-O {[%clk 0:02:16.6]} 13. Bxg6 {[%clk 0:02:11.1]} 13... hxg6 {[%clk
0:02:16.2]} 14. Qd2 {[%clk 0:02:06]} 14... Rad8 {[%clk 0:02:07.9]} 15. Rad1
{[%clk 0:02:04.5]} 15... Rfe8 {[%clk 0:02:07.4]} 16. e4 {[%clk 0:01:57.1]} 16...
dxe4 {[%clk 0:02:07]} 17. fxe4 {[%clk 0:01:57.5]} 17... Ng4 {[%clk 0:02:03.5]}
18. e5 {[%clk 0:01:54.1]} 18... Ndxe5 {[%clk 0:02:00]} 19. Qf4 {[%clk
0:01:43.4]} 19... Nc4 {[%clk 0:01:46.5]} 20. Qxf7+ {[%clk 0:00:47.5]} 20... Kh7
{[%clk 0:01:46.4]} 21. Qxc4 {[%clk 0:00:39]} 21... Ne3 {[%clk 0:01:46.3]} 22.
Qd3 {[%clk 0:00:35.9]} 22... Nxf1 {[%clk 0:01:45.1]} 23. Nxf1 {[%clk 0:00:35.3]}
23... c5 {[%clk 0:01:42.9]} 24. d5 {[%clk 0:00:34.7]} 24... Qb6 {[%clk
0:01:35.8]} 25. Qd2 {[%clk 0:00:24.5]} 25... c4+ {[%clk 0:01:35.5]} 26. Kh1
{[%clk 0:00:23.5]} 26... Re5 {[%clk 0:01:32]} 27. Ng3 {[%clk 0:00:22.1]} 27...
Qe3 {[%clk 0:01:18.6]} 28. h3 {[%clk 0:00:18.2]} 28... Qxg3 {[%clk 0:01:17.6]}
29. Rf1 {[%clk 0:00:14]} 29... b5 {[%clk 0:01:13.5]} 30. Qd4 {[%clk 0:00:11.8]}
30... Re1 {[%clk 0:01:11.1]} 31. Qg1 {[%clk 0:00:07.2]} 31... Rxf1 {[%clk
0:01:09.5]} 32. Qxf1 {[%clk 0:00:07.6]} 32... b4 {[%clk 0:01:08.5]} 33. Ne4
{[%clk 0:00:06.8]} 33... Qe5 {[%clk 0:01:08.2]} 34. Qf3 {[%clk 0:00:04.7]} 34...
Rxd5 {[%clk 0:01:08]} 35. h4 {[%clk 0:00:04.6]} 35... Rd1+ {[%clk 0:00:56]} 36.
Qxd1 {[%clk 0:00:03.1]} 36... Qxe4 {[%clk 0:00:56.5]} 37. h5 {[%clk 0:00:02.5]}
37... Qh4+ {[%clk 0:00:55.4]} 38. Kg1 {[%clk 0:00:02.6]} 38... Qxh5 {[%clk
0:00:55.5]} 39. Qc2 {[%clk 0:00:02.4]} 39... Qc5+ {[%clk 0:00:54.6]} 40. Kh1
{[%clk 0:00:01.8]} 40... c3 {[%clk 0:00:55.1]} 41. b3 {[%clk 0:00:01.8]} 41...
Qe3 {[%clk 0:00:49.9]} 0-1